lending/lending_fUSD_20250516
["ID","MTS","AMOUNT","RATE_DAILY","PERIOD"]
[361259842,1747402245414,-400.0,0.00016438,2]
[361259843,1747402245424,-400.0,0.00016438,2]
[361259844,1747402245433,-400.0,0.00016438,2]
[361259845,1747402245443,-307.42581783,0.00016438,2]
[361259846,1747402245453,-400.0,0.00016438,2]
[361259847,1747402245463,-401.17973101,0.00016438,2]
[361259848,1747402245474,-1338.82,0.00016438,2]
[361259849,1747402245485,-151.0,0.00016438,2]
[361259850,1747402245495,-400.0,0.00016438,2]
[361259851,1747402245505,-434.79,0.00016438,2]
[361259852,1747402245515,-151.0,0.00016438,2]
[361259853,1747402245524,-400.0,0.00016438,2]
[361259854,1747402245534,-151.0,0.00016438,2]
[361259855,1747402245544,-400.0,0.00016438,2]
[361259856,1747402245554,-666.1,0.00016438,2]
[361259857,1747402245563,-400.0,0.00016438,2]
[361259858,1747402245574,-400.0,0.00016438,2]
[361259859,1747402245584,-400.0,0.00016438,2]
[361259860,1747402245593,-566.7,0.00016438,2]
[361259861,1747402245603,-400.0,0.00016438,2]
[361259862,1747402245612,-709.14,0.00016438,2]
[361259863,1747402245622,-400.0,0.00016438,2]
[361259864,1747402245632,-400.0,0.00016438,2]
[361259865,1747402245642,-400.0,0.00016438,2]
[361259866,1747402245651,-400.0,0.00016438,2]
[361259867,1747402245663,-1393.92,0.00016438,2]
[361259868,1747402245672,-400.0,0.00016438,2]
[361259869,1747402245682,-400.0,0.00016438,2]
[361259870,1747402245691,-400.0,0.00016438,2]
[361259871,1747402245701,-400.0,0.00016438,2]
[361259872,1747402245711,-553.73,0.00016438,2]
[361259873,1747402245720,-487.1,0.00016438,2]
[361259874,1747402245730,-675.79,0.00016438,2]
[361259875,1747402245739,-400.0,0.00016438,2]
[361259876,1747402245749,-1014.72,0.00016438,2]
[361259877,1747402245759,-357.61311095,0.00016438,2]
[361259878,1747402245769,-400.0,0.00016438,2]
[361259879,1747402245778,-400.0,0.00016438,2]
[361259880,1747402245788,-400.0,0.00016438,2]
[361259881,1747402245797,-561.06,0.00016438,2]
[361259882,1747402245807,-216.926684,0.00016438,2]
[361259883,1747402245817,-1129.87,0.00016438,2]
[361259884,1747402245827,-400.0,0.00016438,2]
[361259885,1747402245836,-400.0,0.00016438,2]
[361259886,1747402245846,-400.0,0.00016438,2]
[361259887,1747402245856,-400.0,0.00016438,2]
[361259888,1747402245865,-400.0,0.00016438,2]
[361259889,1747402245875,-400.0,0.00016438,2]
[361259890,1747402245885,-173.79836393,0.00016438,2]
[361259891,1747402245895,-400.0,0.00016438,2]
[361259892,1747402245904,-476.14008986,0.00016438,2]
[361259893,1747402245914,-400.0,0.00016438,2]
[361259894,1747402245923,-400.0,0.00016438,2]
[361259895,1747402245933,-281.984017,0.00016438,2]
[361259896,1747402245942,-281.984017,0.00016438,2]
[361259897,1747402245951,-281.984017,0.00016438,2]
[361259898,1747402245960,-400.0,0.00016438,2]
[361259899,1747402245970,-400.0,0.00016438,2]
[361259900,1747402245979,-281.984017,0.00016438,2]
[361259901,1747402245989,-301.50885384,0.00016438,2]
[361259902,1747402245999,-281.984017,0.00016438,2]
[361259903,1747402246008,-400.0,0.00016438,2]
[361259904,1747402246019,-151.0,0.00016438,2]
[361259905,1747402246029,-400.0,0.00016438,2]
[361259906,1747402246038,-400.0,0.00016438,2]
[361259907,1747402246047,-281.984017,0.00016438,2]
[361259908,1747402246057,-281.984017,0.00016438,2]
[361259909,1747402246066,-1879.65,0.00016438,2]
[361259910,1747402246075,-281.984017,0.00016438,2]
[361259911,1747402246085,-400.0,0.00016438,2]
[361259912,1747402246095,-281.984017,0.00016438,2]
[361259913,1747402246104,-281.984017,0.00016438,2]
[361259914,1747402246113,-400.0,0.00016438,2]
[361259915,1747402246123,-458.17921892,0.00016438,2]
[361259916,1747402246133,-400.0,0.00016438,2]
[361259917,1747402246143,-308.95610591,0.00016438,2]
[361259918,1747402246157,-400.0,0.00016438,2]
[361259919,1747402246167,-400.0,0.00016438,2]
[361259920,1747402246177,-400.0,0.00016438,2]
[361259921,1747402246187,-400.0,0.00016438,2]
[361259922,1747402246196,-400.0,0.00016438,2]
[361259924,1747402246206,-400.0,0.00016438,2]
[361259926,1747402246216,-926.4,0.00016438,2]
[361259928,1747402246226,-400.0,0.00016438,2]
[361259929,1747402246236,-400.0,0.00016438,2]
[361259930,1747402246246,-1539.58,0.00016438,2]
[361259931,1747402246255,-400.0,0.00016438,2]
[361259932,1747402246266,-400.0,0.00016438,2]
[361259933,1747402246275,-613.44,0.00016438,2]
[361259934,1747402246285,-400.0,0.00016438,2]
[361259935,1747402246295,-400.0,0.00016438,2]
[361259936,1747402246305,-505.25424379,0.00016438,2]
[361259937,1747402246314,-383.70620248,0.00016438,2]
[361259938,1747402246324,-720.12,0.00016438,2]
[361259939,1747402246334,-500.0,0.00016438,2]
[361259940,1747402246344,-400.0,0.00016438,2]
[361259941,1747402246354,-400.0,0.00016438,2]
[361259942,1747402246363,-400.0,0.00016438,2]
[361259943,1747402246373,-400.0,0.00016438,2]
[361259944,1747402246386,-1038.3,0.00016438,2]
[361259945,1747402246396,-400.0,0.00016438,2]
[361259946,1747402246408,-428.53630199,0.00016438,2]
[361259947,1747402246417,-400.0,0.00016438,2]
[361259948,1747402246428,-1312.96,0.00016438,2]
[361259949,1747402246437,-400.0,0.00016438,2]
[361259950,1747402246447,-400.0,0.00016438,2]
[361259951,1747402246458,-1145.09,0.00016438,2]
[361259952,1747402246468,-870.16,0.00016438,2]
[361259953,1747402246478,-935.23,0.00016438,2]
[361259954,1747402246488,-500.0,0.00016438,2]
[361259955,1747402246499,-801.24,0.00016438,2]
[361259956,1747402246509,-400.0,0.00016438,2]
[361259957,1747402246519,-151.0,0.00016438,2]
[361259958,1747402246529,-151.0,0.00016438,2]
[361259959,1747402246539,-151.0,0.00016438,2]
[361259960,1747402246548,-400.0,0.00016438,2]
[361259961,1747402246558,-985.77,0.00016438,2]
[361259962,1747402246567,-151.0,0.00016438,2]
[361259963,1747402246577,-400.0,0.00016438,2]
[361259964,1747402246587,-400.0,0.00016438,2]
[361259965,1747402246596,-432.47,0.00016438,2]
[361259966,1747402246606,-400.0,0.00016438,2]
[361259967,1747402246615,-1638.13,0.00016438,2]
[361259968,1747402246625,-916.83,0.00016438,2]
[361259969,1747402246634,-617.31,0.00016438,2]
[361259970,1747402246644,-400.0,0.00016438,2]
[361259971,1747402246653,-400.66,0.00016438,2]
[361259972,1747402246664,-578.54,0.00016438,2]
[361259973,1747402246674,-1000.0,0.00016438,2]
[361259974,1747402246684,-691.59,0.00016438,2]
[361259975,1747402246694,-400.0,0.00016438,2]
[361259976,1747402246704,-400.0,0.00016438,2]
[361259977,1747402246713,-400.0,0.00016438,2]
[361259978,1747402246723,-521.84,0.00016438,2]
[361259979,1747402246733,-784.32,0.00016438,2]
[361259980,1747402246742,-400.0,0.00016438,2]
[361259981,1747402246751,-151.0,0.00016438,2]
[361259982,1747402246761,-151.0,0.00016438,2]
[361259983,1747402246771,-151.0,0.00016438,2]
[361259985,1747402246781,-151.0,0.00016438,2]
[361259986,1747402246790,-400.0,0.00016438,2]
[361259987,1747402246799,-1108.49,0.00016438,2]
[361259988,1747402246809,-400.0,0.00016438,2]
[361259989,1747402246819,-400.0,0.00016438,2]
[361259990,1747402246829,-400.0,0.00016438,2]
[361259991,1747402246839,-400.0,0.00016438,2]
[361259992,1747402246849,-400.0,0.00016438,2]
[361259993,1747402246858,-400.0,0.00016438,2]
[361259994,1747402246868,-400.0,0.00016438,2]
[361259995,1747402246878,-1481.12,0.00016438,2]
[361259996,1747402246887,-560.12,0.00016438,2]
[361259997,1747402246897,-400.0,0.00016438,2]
[361259998,1747402246908,-400.0,0.00016438,2]
[361259999,1747402246918,-400.0,0.00016438,2]
[361260000,1747402246928,-400.0,0.00016438,2]
[361260001,1747402246937,-1368.68,0.00016438,2]
[361260002,1747402246947,-608.22,0.00016438,2]
[361260003,1747402246957,-400.0,0.00016438,2]
[361260004,1747402246966,-400.0,0.00016438,2]
[361260005,1747402246976,-400.0,0.00016438,2]
[361260006,1747402246986,-400.0,0.00016438,2]
[361260007,1747402246995,-400.0,0.00016438,2]
[361260008,1747402247006,-400.09,0.00016438,2]
[361260009,1747402247016,-629.97,0.00016438,2]
[361260010,1747402247026,-400.0,0.00016438,2]
[361260011,1747402247036,-400.0,0.00016438,2]
[361260012,1747402247046,-400.0,0.00016438,2]
[361260013,1747402247056,-514.39,0.00016438,2]
[361260014,1747402247066,-307.49886802,0.00016438,2]
[361260015,1747402247076,-517.48,0.00016438,2]
[361260016,1747402247086,-986.83,0.00016438,2]
[361260017,1747402247095,-498.35,0.00016438,2]
[361260018,1747402247105,-400.0,0.00016438,2]
[361260019,1747402247115,-806.52,0.00016438,2]
[361260020,1747402247124,-690.55,0.00016438,2]
[361260021,1747402247135,-654.96,0.00016438,2]
[361260022,1747402247145,-959.6,0.00016438,2]
[361260023,1747402247155,-1416.36,0.00016438,2]
[361260024,1747402247166,-400.0,0.00016438,2]
[361260025,1747402247176,-609.93,0.00016438,2]
[361260026,1747402247186,-553.75,0.00016438,2]
[361260027,1747402247196,-400.0,0.00016438,2]
[361260028,1747402247206,-400.0,0.00016438,2]
[361260029,1747402247216,-400.0,0.00016438,2]
[361260030,1747402247226,-648.21,0.00016438,2]
[361260031,1747402247236,-643.82,0.00016438,2]
[361260032,1747402247246,-400.0,0.00016438,2]
[361260033,1747402247256,-230.09633251,0.00016438,2]
[361260034,1747402247266,-457.53,0.00016438,2]
[361260035,1747402247276,-400.0,0.00016438,2]
[361260036,1747402247287,-1013.85,0.00016438,2]
[361260037,1747402247296,-400.0,0.00016438,2]
[361260038,1747402247307,-1134.63,0.00016438,2]
[361260039,1747402247316,-400.0,0.00016438,2]
[361260040,1747402247326,-400.0,0.00016438,2]
[361260041,1747402247336,-821.9,0.00016438,2]
[361260042,1747402247346,-181.42672985,0.00016438,2]
[361260043,1747402247356,-584.54,0.00016438,2]
[361260044,1747402247365,-415.77,0.00016438,2]
[361260045,1747402247375,-569.42,0.00016438,2]
[361260046,1747402247389,-400.0,0.00016438,2]
[361260047,1747402247399,-772.65,0.00016438,2]
[361260048,1747402247408,-400.0,0.00016438,2]
[361260049,1747402247421,-724.94,0.00016438,2]
[361260050,1747402247431,-151.0,0.00016438,2]
[361260051,1747402247444,-400.0,0.00016438,2]
[361260052,1747402247454,-565.41,0.00016438,2]
[361260053,1747402247465,-872.43,0.00016438,2]
[361260054,1747402247475,-400.0,0.00016438,2]
[361260055,1747402247484,-457.33,0.00016438,2]
[361260056,1747402247494,-400.0,0.00016438,2]
[361260057,1747402247504,-447.61,0.00016438,2]
[361260058,1747402247514,-400.0,0.00016438,2]
[361260059,1747402247524,-400.0,0.00016438,2]
[361260060,1747402247534,-723.69,0.00016438,2]
[361260061,1747402247544,-400.0,0.00016438,2]
[361260062,1747402247554,-407.68367,0.00016438,2]
[361260063,1747402247564,-400.0,0.00016438,2]
[361260064,1747402247574,-581.08,0.00016438,2]
[361260065,1747402247584,-1070.47,0.00016438,2]
[361260066,1747402247594,-400.0,0.00016438,2]
[361260067,1747402247604,-853.45,0.00016438,2]
[361260068,1747402247614,-450.32,0.00016438,2]
[361260069,1747402247624,-403.70773972,0.00016438,2]
[361260070,1747402247633,-400.0,0.00016438,2]
[361260071,1747402247643,-400.0,0.00016438,2]
[361260072,1747402247653,-525.86,0.00016438,2]
[361260073,1747402247666,-400.0,0.00016438,2]
[361260074,1747402247676,-1820.82,0.00016438,2]
[361260075,1747402247686,-400.0,0.00016438,2]
[361260076,1747402247696,-602.54,0.00016438,2]
[361260077,1747402247707,-400.0,0.00016438,2]
[361260078,1747402247717,-400.0,0.00016438,2]
[361260079,1747402247727,-500.0,0.00016438,2]
[361260080,1747402247738,-400.0,0.00016438,2]
[361260081,1747402247748,-464.84,0.00016438,2]
[361260082,1747402247758,-589.42,0.00016438,2]
[361260083,1747402247768,-400.0,0.00016438,2]
[361260084,1747402247778,-686.09,0.00016438,2]
[361260085,1747402247788,-400.0,0.00016438,2]
[361260086,1747402247799,-400.0,0.00016438,2]
[361260087,1747402247809,-568.33,0.00016438,2]
[361260088,1747402247819,-241.35100072,0.00016438,2]
[361260089,1747402247830,-400.0,0.00016438,2]
[361260090,1747402247840,-171.80374034,0.00016438,2]
[361260091,1747402248192,-400.0,0.00016438,2]
[361260092,1747402248204,-1783.0,0.00016438,2]
[361260093,1747402248214,-461.12302949,0.00016438,2]
[361260094,1747402248225,-400.0,0.00016438,2]
[361260095,1747402248236,-400.0,0.00016438,2]
[361260096,1747402248247,-400.0,0.00016438,2]
[361260097,1747402248258,-405.02618143,0.00016438,2]
[361260098,1747402248268,-400.0,0.00016438,2]
[361260099,1747402248279,-405.54193606,0.00016438,2]
[361260100,1747402248289,-400.0,0.00016438,2]
[361260101,1747402248299,-151.0,0.00016438,2]
[361260102,1747402248309,-659.23,0.00016438,2]
[361260103,1747402248319,-490.71,0.00016438,2]
[361260104,1747402248329,-1202.48,0.00016438,2]
[361260105,1747402248338,-151.0,0.00016438,2]
[361260106,1747402248348,-1141.46,0.00016438,2]
[361260107,1747402248359,-400.0,0.00016438,2]
[361260108,1747402248369,-512.12,0.00016438,2]
[361260109,1747402248380,-400.0,0.00016438,2]
[361260110,1747402248396,-400.0,0.00016438,2]
[361260111,1747402248406,-413.44,0.00016438,2]
[361260112,1747402248419,-731.98,0.00016438,2]
[361260113,1747402248430,-400.0,0.00016438,2]
[361260114,1747402248440,-499.44,0.00016438,2]
[361260115,1747402248450,-400.0,0.00016438,2]
[361260116,1747402248463,-400.0,0.00016438,2]
[361260117,1747402248475,-2284.9,0.00016438,2]
[361260118,1747402248485,-400.0,0.00016438,2]
[361260119,1747402248495,-440.78,0.00016438,2]
[361260120,1747402248506,-2076.24,0.00016438,2]
[361260121,1747402248516,-400.0,0.00016438,2]
[361260122,1747402248526,-151.0,0.00016438,2]
[361260123,1747402248536,-151.0,0.00016438,2]
[361260124,1747402248546,-151.0,0.00016438,2]
[361260125,1747402248556,-400.0,0.00016438,2]
[361260126,1747402248566,-400.0,0.00016438,2]
[361260127,1747402248576,-400.0,0.00016438,2]
[361260128,1747402248585,-412.87480679,0.00016438,2]
[361260129,1747402248595,-400.0,0.00016438,2]
[361260130,1747402248605,-400.0,0.00016438,2]
[361260131,1747402248614,-634.85,0.00016438,2]
[361260132,1747402248624,-400.0,0.00016438,2]
[361260133,1747402248634,-1568.1,0.00016438,2]
[361260134,1747402248644,-400.0,0.00016438,2]
[361260135,1747402248653,-400.0,0.00016438,2]
[361260136,1747402248664,-503.72,0.00016438,2]
[361260137,1747402248673,-400.0,0.00016438,2]
[361260138,1747402248683,-400.0,0.00016438,2]
[361260139,1747402248693,-400.0,0.00016438,2]
[361260140,1747402248702,-400.0,0.00016438,2]
[361260141,1747402248713,-509.08379369,0.00016438,2]
[361260142,1747402248723,-490.08,0.00016438,2]
[361260143,1747402248733,-400.0,0.00016438,2]
[361260144,1747402248743,-1358.85,0.00016438,2]
[361260145,1747402248752,-464.1,0.00016438,2]
[361260146,1747402248763,-400.0,0.00016438,2]
[361260147,1747402248772,-1595.41,0.00016438,2]
[361260148,1747402248782,-400.0,0.00016438,2]
[361260149,1747402248792,-400.0,0.00016438,2]
[361260150,1747402248801,-492.84,0.00016438,2]
[361260151,1747402248811,-400.0,0.00016438,2]
[361260152,1747402248820,-400.0,0.00016438,2]
[361260153,1747402248830,-400.0,0.00016438,2]
[361260154,1747402248839,-400.0,0.00016438,2]
[361260155,1747402248849,-525.78718233,0.00016438,2]
[361260156,1747402248859,-761.8,0.00016438,2]
[361260157,1747402248868,-400.0,0.00016438,2]
[361260158,1747402248878,-638.66,0.00016438,2]
[361260159,1747402248888,-2218.63,0.00016438,2]
[361260160,1747402248898,-400.0,0.00016438,2]
[361260161,1747402248908,-400.0,0.00016438,2]
[361260162,1747402248918,-400.0,0.00016438,2]
[361260163,1747402248928,-912.21,0.00016438,2]
[361260164,1747402248938,-2103.57,0.00016438,2]
[361260165,1747402248948,-400.0,0.00016438,2]
[361260166,1747402248957,-400.0,0.00016438,2]
[361260167,1747402248967,-151.0,0.00016438,2]
[361260168,1747402248977,-400.0,0.00016438,2]
[361260169,1747402248987,-151.0,0.00016438,2]
[361260170,1747402248997,-151.0,0.00016438,2]
[361260171,1747402249007,-151.0,0.00016438,2]
[361260172,1747402249018,-318.29964988,0.00016438,2]
[361260173,1747402249028,-151.0,0.00016438,2]
[361260174,1747402249038,-400.0,0.00016438,2]
[361260175,1747402249048,-400.0,0.00016438,2]
[361260176,1747402249057,-400.0,0.00016438,2]
[361260177,1747402249067,-1018.41,0.00016438,2]
[361260178,1747402249077,-400.0,0.00016438,2]
[361260179,1747402249087,-384.13323541,0.00016438,2]
[361260180,1747402249096,-1866.68405662,0.00016438,2]
[361260181,1747402249872,-1506.0,0.00016438,2]
[361260182,1747402249884,-1673.8637447,0.00016438,2]
[361260183,1747402249893,-400.0,0.00016438,2]
[361260184,1747402249903,-400.0,0.00016438,2]
[361260185,1747402249914,-500.0,0.00016438,2]
[361260186,1747402249924,-400.0,0.00016438,2]
[361260187,1747402249933,-500.0,0.00016438,2]
[361260188,1747402249943,-127.19101675,0.00016438,2]
[361260189,1747402249955,-372.80898325,0.00016438,2]
[361260190,1747402249964,-500.0,0.00016438,2]
[361260191,1747402249974,-500.0,0.00016438,2]
[361260192,1747402249984,-500.0,0.00016438,2]
[361260193,1747402249993,-500.0,0.00016438,2]
[361260194,1747402250003,-500.0,0.00016438,2]
[361260195,1747402250013,-500.0,0.00016438,2]
[361260196,1747402250023,-1174.55,0.00016438,2]
[361260197,1747402250033,-374.64583591,0.00016438,2]
[361260198,1747402250042,-1027.05,0.00016438,2]
[361260199,1747402250052,-158.931497,0.00016438,2]
[361260200,1747402250062,-415.88,0.00016438,2]
[361260201,1747402250071,-151.0,0.00016438,2]
[361260202,1747402250082,-151.0,0.00016438,2]
[361260203,1747402250091,-151.0,0.00016438,2]
[361260204,1747402250101,-423.01,0.00016438,2]
[361260205,1747402250111,-164.51938512,0.00016438,2]
[361260206,1747402250121,-400.0,0.00016438,2]
[361260207,1747402250130,-400.0,0.00016438,2]
[361260208,1747402250140,-153.030808,0.00016438,2]
[361260209,1747402250149,-931.14,0.00016438,2]
[361260210,1747402250161,-251.02107179,0.00016438,2]
[361260211,1747402250173,-1111.892158,0.00016438,2]
[361260212,1747402250205,-96.86677021,0.00016438,2]
[361260213,1747402250215,-151.57300527,0.00016438,2]
[361260214,1747402250225,-66.88022453,0.00016438,2]
[361260215,1747402250236,-333.11977547,0.00016438,2]
[361260216,1747402250246,-400.0,0.00016438,2]
[361260217,1747402250256,-400.0,0.00016438,2]
[361260218,1747402250265,-400.0,0.00016438,2]
[361260219,1747402250275,-1753.93,0.00016438,2]
[361260220,1747402250284,-400.0,0.00016438,2]
[361260221,1747402250294,-400.0,0.00016438,2]
[361260222,1747402250304,-701.50022453,0.00016438,2]
[361260223,1747402250316,-399.35977547,0.00016438,2]
[361260224,1747402250326,-400.0,0.00016438,2]
[361260225,1747402250346,-1072.93,0.00016438,2]
[361260226,1747402250356,-400.0,0.00016438,2]
[361260227,1747402250366,-400.0,0.00016438,2]
[361260228,1747402250377,-400.0,0.00016438,2]
[361260229,1747402250540,-400.0,0.00016438,2]
[361260230,1747402250551,-400.0,0.00016438,2]
[361260231,1747402250560,-400.0,0.00016438,2]
[361260232,1747402250569,-400.0,0.00016438,2]
[361260233,1747402250579,-400.0,0.00016438,2]
[361260234,1747402250588,-400.0,0.00016438,2]
[361260235,1747402250598,-400.0,0.00016438,2]
[361260236,1747402250607,-1039.45,0.00016438,2]
[361260237,1747402250616,-400.0,0.00016438,2]
[361260238,1747402250626,-411.02,0.00016438,2]
[361260239,1747402250635,-400.0,0.00016438,2]
[361260240,1747402250644,-1887.62,0.00016438,2]
[361260241,1747402250654,-400.0,0.00016438,2]
[361260242,1747402250664,-1284.32,0.00016438,2]
[361260243,1747402250673,-794.06,0.00016438,2]
[361260244,1747402250682,-448.4,0.00016438,2]
[361260245,1747402250691,-544.88218439,0.00016438,2]
[361260246,1747402250700,-534.49,0.00016438,2]
[361260247,1747402250709,-400.0,0.00016438,2]
[361260248,1747402250719,-400.0,0.00016438,2]
[361260249,1747402250728,-400.0,0.00016438,2]
[361260250,1747402250737,-400.0,0.00016438,2]
[361260251,1747402250747,-400.0,0.00016438,2]
[361260252,1747402250756,-364.48105919,0.00016438,2]
[361260253,1747402250765,-151.0,0.00016438,2]
[361260254,1747402250774,-400.0,0.00016438,2]
[361260255,1747402250783,-151.0,0.00016438,2]
[361260256,1747402250792,-151.0,0.00016438,2]
[361260257,1747402250802,-437.76,0.00016438,2]
[361260258,1747402250810,-400.0,0.00016438,2]
[361260259,1747402250820,-400.0,0.00016438,2]
[361260260,1747402250830,-1107.87,0.00016438,2]
[361260261,1747402250839,-400.0,0.00016438,2]
[361260262,1747402250848,-428.79,0.00016438,2]
[361260263,1747402250857,-871.57,0.00016438,2]
[361260264,1747402250866,-400.0,0.00016438,2]
[361260265,1747402250876,-620.23,0.00016438,2]
[361260266,1747402250885,-315.32698095,0.00016438,2]
[361260267,1747402250900,-756.00301905,0.00016438,2]
[361260268,1747402250909,-828.96,0.00016438,2]
[361260269,1747402250919,-400.0,0.00016438,2]
[361260270,1747402250928,-160.03698095,0.00016438,2]
[361260271,1747402250957,-239.96301905,0.00016438,2]
[361260272,1747402250966,-400.0,0.00016438,2]
[361260273,1747402250975,-1403.53,0.00016438,2]
[361260274,1747402250984,-442.7891706,0.00016438,2]
[361260275,1747402250994,-142.30819679,0.00016438,2]
[361260276,1747402251608,-257.69180321,0.00016438,2]
[361260277,1747402251617,-573.74,0.00016438,2]
[361260278,1747402251627,-185.834411,0.00016438,2]
[361260279,1747402251636,-560.8,0.00016438,2]
[361260280,1747402251645,-185.834411,0.00016438,2]
[361260281,1747402251654,-185.834411,0.00016438,2]
[361260282,1747402251665,-400.0,0.00016438,2]
[361260283,1747402251675,-400.0,0.00016438,2]
[361260284,1747402251684,-434.96,0.00016438,2]
[361260285,1747402251694,-185.834411,0.00016438,2]
[361260286,1747402251703,-400.0,0.00016438,2]
[361260287,1747402251713,-400.0,0.00016438,2]
[361260288,1747402251723,-185.834411,0.00016438,2]
[361260289,1747402251732,-400.0,0.00016438,2]
[361260290,1747402251741,-185.834411,0.00016438,2]
[361260291,1747402251751,-185.834411,0.00016438,2]
[361260292,1747402251760,-400.0,0.00016438,2]
[361260293,1747402251769,-185.834411,0.00016438,2]
[361260294,1747402251778,-402.02804778,0.00016438,2]
[361260295,1747402251787,-695.95,0.00016438,2]
[361260296,1747402251796,-400.0,0.00016438,2]
[361260297,1747402251806,-400.0,0.00016438,2]
[361260298,1747402251815,-400.0,0.00016438,2]
[361260299,1747402251824,-263.32660264,0.00016438,2]
[361260300,1747402251834,-400.0,0.00016438,2]
[361260301,1747402251843,-400.0,0.00016438,2]
[361260302,1747402251852,-1085.9,0.00016438,2]
[361260303,1747402251861,-400.0,0.00016438,2]
[361260304,1747402251871,-400.0,0.00016438,2]
[361260305,1747402251880,-151.0,0.00016438,2]
[361260306,1747402251889,-151.0,0.00016438,2]
[361260307,1747402251898,-400.0,0.00016438,2]
[361260308,1747402251907,-400.0,0.00016438,2]
[361260309,1747402251917,-400.0,0.00016438,2]
[361260310,1747402251926,-400.0,0.00016438,2]
[361260311,1747402251935,-400.0,0.00016438,2]
[361260312,1747402251944,-458.44130287,0.00016438,2]
[361260313,1747402251954,-400.0,0.00016438,2]
[361260314,1747402251963,-400.0,0.00016438,2]
[361260315,1747402251972,-576.72,0.00016438,2]
[361260316,1747402251981,-400.0,0.00016438,2]
[361260317,1747402251990,-400.0,0.00016438,2]
[361260318,1747402251999,-1193.13,0.00016438,2]
[361260319,1747402252008,-1279.58,0.00016438,2]
[361260320,1747402252018,-400.0,0.00016438,2]
[361260321,1747402252029,-400.0,0.00016438,2]
[361260322,1747402252039,-400.0,0.00016438,2]
[361260323,1747402252048,-400.0,0.00016438,2]
[361260324,1747402252058,-151.0,0.00016438,2]
[361260325,1747402252068,-151.0,0.00016438,2]
[361260326,1747402252078,-151.0,0.00016438,2]
[361260327,1747402252087,-400.0,0.00016438,2]
[361260328,1747402252096,-769.29,0.00016438,2]
[361260329,1747402252106,-400.0,0.00016438,2]
[361260330,1747402252116,-400.0,0.00016438,2]
[361260331,1747402252125,-1239.1,0.00016438,2]
[361260332,1747402252135,-400.0,0.00016438,2]
[361260333,1747402252144,-400.0,0.00016438,2]
[361260334,1747402252153,-425.28,0.00016438,2]
[361260335,1747402252166,-489.21586008,0.00016438,2]
[361260336,1747402252178,-445.77,0.00016438,2]
[361260337,1747402252187,-400.0,0.00016438,2]
[361260338,1747402252196,-151.0,0.00016438,2]
[361260339,1747402252205,-151.0,0.00016438,2]
[361260340,1747402252215,-173.062655,0.00016438,2]
[361260341,1747402252225,-400.0,0.00016438,2]
[361260342,1747402252235,-761.65,0.00016438,2]
[361260343,1747402252245,-192.84621811,0.00016438,2]
[361260344,1747402252254,-1558.95,0.00016438,2]
[361260345,1747402252263,-400.0,0.00016438,2]